Workbook

Sheet Battle
B2: Ожидаемая доходность M(R) = R1*P1+R2*P2+…+Ri*Pi+…Rn*Pn, где Ri - доходность инструмента в сценарии i, Pi - вероятность сценария i; i = 1..n; P1+P2+…+Pi+…Pn=1
B6: Исходные данные
B8: Вариант ritsar
B9: Годовая доходность (R1) | C9: 0.9
B10: Вероятность сценария (P1) | C10: 0.5
B11: Годовая доходность (R2) | C11: 1.2
B12: Вероятность сценария (P2) | C12: 0.5
B13: Ожидаемая годовая доходность M(R) | C13: =C9*C10+C11*C12 -> 1.05
B15: Вариант Soul
B16: Годовая доходность (R1) | C16: 1.05
B17: Вероятность сценария (P2) | C17: 1
B18: Ожидаемая годовая доходность M(R) | C18: =C14*C15+C16*C17 -> 1.05
B21: Расчёты по всем возможным сценариям
B22: Количество лет | C22: 2
B24: Сценарии:
B25: Периодов с доходностью 0,9 | C25: Периодов с доходностью 1,2 | D25: Количество сценариев | E25: Вероятность сценария | F25: Итоговый доход сценария | G25: Средний годовой доход данного сценария (доход сценария ^ (1/кол-во лет))
B26: 2 | C26: 0 | D26: 1 | E26: =D26/$D$29 -> 0.25 | F26: =$C$9^B26*$C$11^C26 -> 0.81 | G26: =F26^(1/$C$22) -> 0.9
B27: 1 | C27: 1 | D27: 2 | E27: =D27/$D$29 -> 0.5 | F27: =$C$9^B27*$C$11^C27 -> 1.08 | G27: =F27^(1/$C$22) -> 1.039230485
B28: 0 | C28: 2 | D28: 1 | E28: =D28/$D$29 -> 0.25 | F28: 1.44 | G28: =F28^(1/$C$22) -> 1.2
B29: Итого | D29: =SUM(D26:D28) -> 4 | E29: =SUM(E26:E28) -> 1 | F29: =SUMPRODUCT(D26:D28,F26:F28) -> 4.41 | G29: =SUMPRODUCT(D26:D28,G26:G28)/D29 -> 1.044615242
B31: Средний ожидаемый доход за весь период (сумма доходов по всем сценариям / количество сценариев) | C31: =F29/D29 -> 1.1025
B32: Средний ожидаемый годовой доход (сумма доходов по всем сценариям / количество сценариев)^(1/кол-во лет) | C32: =C31^(1/$C$22) -> 1.05
B33: Доходность среднего сценария (средневзвешенная годовая доходность по всем сценариям) | C33: =G29 -> 1.044615242
B36: Расчёты по всем возможным сценариям
B37: Количество лет | C37: 3
B39: Сценарии:
B40: Периодов с доходностью 0,9 | C40: Периодов с доходностью 1,2 | D40: Количество сценариев | E40: Вероятность сценария | F40: Итоговый доход сценария | G40: Средний годовой доход данного сценария (доход сценария ^ (1/кол-во лет))
B41: 3 | C41: =$C$37-B41 -> 0 | D41: =FACT($C$37)/(FACT(B41)*FACT(C41)) -> 1 | E41: =D41/D45 -> 0.125 | F41: =$C$9^B41*$C$11^C41 -> 0.729 | G41: =F41^(1/$C37) -> 0.9
B42: =B41-1 -> 2 | C42: =$C$37-B42 -> 1 | D42: =FACT($C$37)/(FACT(B42)*FACT(C42)) -> 3 | E42: =D42/D45 -> 0.375 | F42: =$C$9^B42*$C$11^C42 -> 0.972 | G42: =F42^(1/C37) -> 0.9905781747
B43: =B42-1 -> 1 | C43: 2 | D43: 3 | E43: =D43/D45 -> 0.375 | F43: =$C$9^B43*$C$11^C43 -> 1.296 | G43: =F43^(1/C37) -> 1.090272356
B44: 0 | C44: 3 | D44: 1 | E44: =D44/D45 -> 0.125 | F44: 1.728 | G44: =F44^(1/C37) -> 1.2
B45: Итого | D45: =SUM(D41:D44) -> 8 | E45: =SUM(E41:E44) -> 1 | F45: =SUMPRODUCT(D41:D44,F41:F44) -> 9.261 | G45: =SUMPRODUCT(D41:D44,G41:G44)/D45 -> 1.042818949
B47: Средний ожидаемый доход за весь период (сумма доходов по всем сценариям / количество сценариев) | C47: =F45/D45 -> 1.157625
B48: Средний ожидаемый годовой доход (сумма доходов по всем сценариям / количество сценариев)^(1/кол-во лет) | C48: =C47^(1/C37) -> 1.05
B49: Доходность среднего сценария (средневзвешенная годовая доходность по всем сценариям) | C49: =G45 -> 1.042818949
B52: Расчёты по всем возможным сценариям
B53: Количество лет | C53: 4
B55: Сценарии:
B56: Периодов с доходностью 0,9 | C56: Периодов с доходностью 1,2 | D56: Количество сценариев | E56: Вероятность сценария | F56: Итоговый доход сценария | G56: Средний годовой доход данного сценария (доход сценария ^ (1/кол-во лет))
B57: =C53 -> 4 | C57: =C53-B57 -> 0 | D57: =FACT(C53)/(FACT(B57)*FACT(C57)) -> 1 | E57: =D57/D62 -> 0.0625 | F57: =$C$9^B57*$C$11^C57 -> 0.6561 | G57: =F57^(1/$C53) -> 0.9
B58: =B57-1 -> 3 | C58: =C53-B58 -> 1 | D58: =FACT(C53)/(FACT(B58)*FACT(C58)) -> 4 | E58: =D58/D62 -> 0.25 | F58: =$C$9^B58*$C$11^C58 -> 0.8748 | G58: =F58^(1/C53) -> 0.9671129386
B59: =B58-1 -> 2 | C59: =C53-B59 -> 2 | D59: =FACT(C53)/(FACT(B59)*FACT(C59)) -> 6 | E59: =D59/D62 -> 0.375 | F59: =$C$9^B59*$C$11^C59 -> 1.1664 | G59: =F59^(1/C53) -> 1.039230485
B60: 1 | C60: =C53-B60 -> 3 | D60: =FACT(C53)/(FACT(B60)*FACT(C60)) -> 4 | E60: =D60/D62 -> 0.25 | F60: =$C$9^B60*$C$11^C60 -> 1.5552 | G60: =F60^(1/C53) -> 1.116725831
B61: 0 | C61: =C53-B61 -> 4 | D61: =FACT(C53)/(FACT(B61)*FACT(C61)) -> 1 | E61: =D61/D62 -> 0.0625 | F61: 2.0736 | G61: =F61^(1/C53) -> 1.2
B62: Итого | D62: =SUM(D57:D61) -> 16 | E62: =SUM(E57:E61) -> 1 | F62: =SUMPRODUCT(D57:D61,F57:F61) -> 19.4481 | G62: =SUMPRODUCT(D57:D61,G57:G61)/D62 -> 1.041921124
B64: Средний ожидаемый доход за весь период (сумма доходов по всем сценариям / количество сценариев) | C64: =F62/D62 -> 1.21550625
B65: Средний ожидаемый годовой доход (сумма доходов по всем сценариям / количество сценариев)^(1/кол-во лет) | C65: =C64^(1/C53) -> 1.05
B66: Доходность среднего сценария (средневзвешенная годовая доходность по всем сценариям) | C66: =G62 -> 1.041921124
B69: Расчёты по всем возможным сценариям
B70: Количество лет | C70: 5
B72: Сценарии:
B73: Периодов с доходностью 0,9 | C73: Периодов с доходностью 1,2 | D73: Количество сценариев | E73: Вероятность сценария | F73: Итоговый доход сценария | G73: Средний годовой доход данного сценария (доход сценария ^ (1/кол-во лет))
B74: =C70 -> 5 | C74: =C70-B74 -> 0 | D74: =FACT(C70)/(FACT(B74)*FACT(C74)) -> 1 | E74: =D74/D80 -> 0.03125 | F74: =$C$9^B74*$C$11^C74 -> 0.59049 | G74: =F74^(1/$C70) -> 0.9
B75: =B74-1 -> 4 | C75: =C70-B75 -> 1 | D75: =FACT(C70)/(FACT(B75)*FACT(C75)) -> 5 | E75: =D75/D80 -> 0.15625 | F75: =$C$9^B75*$C$11^C75 -> 0.78732 | G75: =F75^(1/C70) -> 0.9533014569
B76: =B75-1 -> 3 | C76: =C70-B76 -> 2 | D76: =FACT(C70)/(FACT(B76)*FACT(C76)) -> 10 | E76: =D76/D80 -> 0.3125 | F76: =$C$9^B76*$C$11^C76 -> 1.04976 | G76: =F76^(1/C70) -> 1.009759631
B77: 2 | C77: =C70-B77 -> 3 | D77: =FACT(C70)/(FACT(B77)*FACT(C77)) -> 10 | E77: =D77/D80 -> 0.3125 | F77: =$C$9^B77*$C$11^C77 -> 1.39968 | G77: =F77^(1/C70) -> 1.069561475
B78: 1 | C78: =C70-B78 -> 4 | D78: =FACT(C70)/(FACT(B78)*FACT(C78)) -> 5 | E78: =D78/D80 -> 0.15625 | F78: =$C$9^B78*$C$11^C78 -> 1.86624 | G78: =F78^(1/C70) -> 1.132905014
B79: 0 | C79: =C70-B79 -> 5 | D79: =FACT(C70)/(FACT(B79)*FACT(C79)) -> 1 | E79: =D79/D80 -> 0.03125 | F79: 2.48832 | G79: =F79^(1/C70) -> 1.2
B80: Итого | D80: =SUM(D74:D79) -> 32 | E80: =SUM(E74:E79) -> 1 | F80: =SUMPRODUCT(D74:D79,F74:F79) -> 40.84101 | G80: =SUMPRODUCT(D74:D79,G74:G79)/D80 -> 1.041382607
B82: Средний ожидаемый доход за весь период (сумма доходов по всем сценариям / количество сценариев) | C82: =F80/D80 -> 1.276281562
B83: Средний ожидаемый годовой доход (сумма доходов по всем сценариям / количество сценариев)^(1/кол-во лет) | C83: =C82^(1/C70) -> 1.05
B84: Доходность среднего сценария (средневзвешенная годовая доходность по всем сценариям) | C84: =G80 -> 1.041382607
B87: Расчёты по всем возможным сценариям
B88: Количество лет | C88: 10
B90: Сценарии:
B91: Периодов с доходностью 0,9 | C91: Периодов с доходностью 1,2 | D91: Количество сценариев | E91: Вероятность сценария | F91: Итоговый доход сценария | G91: Средний годовой доход данного сценария (доход сценария ^ (1/кол-во лет))
B92: =C88 -> 10 | C92: =C88-B92 -> 0 | D92: =FACT(C88)/(FACT(B92)*FACT(C92)) -> 1 | E92: =D92/D103 -> 0.0009765625 | F92: =$C$9^B92*$C$11^C92 -> 0.3486784401 | G92: =F92^(1/C88) -> 0.9
B93: =B92-1 -> 9 | C93: =C88-B93 -> 1 | D93: =FACT(C88)/(FACT(B93)*FACT(C93)) -> 10 | E93: =D93/D103 -> 0.009765625 | F93: =$C$9^B93*$C$11^C93 -> 0.4649045868 | G93: =F93^(1/C88) -> 0.9262674081
B94: =B93-1 -> 8 | C94: =C88-B94 -> 2 | D94: =FACT(C88)/(FACT(B94)*FACT(C94)) -> 45 | E94: =D94/D103 -> 0.0439453125 | F94: =$C$9^B94*$C$11^C94 -> 0.6198727824 | G94: =F94^(1/C88) -> 0.9533014569
B95: 7 | C95: =C88-B95 -> 3 | D95: =FACT(C88)/(FACT(B95)*FACT(C95)) -> 120 | E95: =D95/D103 -> 0.1171875 | F95: 0.8264970432 | G95: =F95^(1/C88) -> 0.9811245218
B96: 6 | C96: =C88-B96 -> 4 | D96: =FACT(C88)/(FACT(B96)*FACT(C96)) -> 210 | E96: =D96/D103 -> 0.205078125 | F96: 1.101996058 | G96: =F96^(1/C88) -> 1.009759631
B97: 5 | C97: =C88-B97 -> 5 | D97: =FACT(C88)/(FACT(B97)*FACT(C97)) -> 252 | E97: =D97/D103 -> 0.24609375 | F97: 1.469328077 | G97: =F97^(1/C88) -> 1.039230485
B98: 4 | C98: =C88-B98 -> 6 | D98: =FACT(C88)/(FACT(B98)*FACT(C98)) -> 210 | E98: =D98/D103 -> 0.205078125 | F98: 1.959104102 | G98: =F98^(1/C88) -> 1.069561475
B99: 3 | C99: =C88-B99 -> 7 | D99: =FACT(C88)/(FACT(B99)*FACT(C99)) -> 120 | E99: =D99/D103 -> 0.1171875 | F99: =$C$9^B99*$C$11^C99 -> 2.612138803 | G99: =F99^(1/C88) -> 1.100777706
B100: 2 | C100: =C88-B100 -> 8 | D100: =FACT(C88)/(FACT(B100)*FACT(C100)) -> 45 | E100: =D100/D103 -> 0.0439453125 | F100: =$C$9^B100*$C$11^C100 -> 3.482851738 | G100: =F100^(1/C88) -> 1.132905014
B101: 1 | C101: =C88-B101 -> 9 | D101: =FACT(C88)/(FACT(B101)*FACT(C101)) -> 10 | E101: =D101/D103 -> 0.009765625 | F101: =$C$9^B101*$C$11^C101 -> 4.643802317 | G101: =F101^(1/C88) -> 1.165969989
B102: 0 | C102: =C88-B102 -> 10 | D102: =FACT(C88)/(FACT(B102)*FACT(C102)) -> 1 | E102: =D102/D103 -> 0.0009765625 | F102: 6.191736422 | G102: =F102^(1/C88) -> 1.2
B103: Итого | D103: =SUM(D92:D102) -> 1024 | E103: =SUM(E92:E102) -> 1 | F103: =SUMPRODUCT(D92:D102,F92:F102) -> 1667.988098 | G103: =SUMPRODUCT(D92:D102,G92:G102)/D103 -> 1.0403061
B105: Средний ожидаемый доход за весь период (сумма доходов по всем сценариям / количество сценариев) | C105: =F103/D103 -> 1.628894627
B106: Средний ожидаемый годовой доход (сумма доходов по всем сценариям / количество сценариев)^(1/кол-во лет) | C106: =C105^(1/C88) -> 1.05
B107: Доходность среднего сценария (средневзвешенная годовая доходность по всем сценариям) | C107: =G103 -> 1.0403061
